[Event "Live Chess"]
[Site "Chess.com"]
[Date "2023.05.21"]
[Round "-"]
[White "Shepherds_Pie"]
[Black "JohanKjeldahl"]
[Result "0-1"]
[WhiteElo "1909"]
[BlackElo "1899"]
[TimeControl "300"]
[EndTime "0:48:41 PDT"]
[Termination "JohanKjeldahl won by resignation"]

1. c4 {[%clk 0:04:58.1]} 1... Nf6 {[%clk 0:04:57.3]} 2. Nc3 {[%clk 0:04:56.6]}
2... e5 {[%clk 0:04:55.6]} 3. Nf3 {[%clk 0:04:55.3]} 3... Nc6 {[%clk 0:04:54.5]}
4. e3 {[%clk 0:04:54.1]} 4... Bb4 {[%clk 0:04:52.8]} 5. Qc2 {[%clk 0:04:52.9]}
5... O-O {[%clk 0:04:51.1]} 6. Nd5 {[%clk 0:04:51.4]} 6... Be7 {[%clk
0:04:44.2]} 7. a3 {[%clk 0:04:46.8]} 7... d6 {[%clk 0:04:43.2]} 8. Nxf6+ {[%clk
0:04:43.1]} 8... Bxf6 {[%clk 0:04:41.5]} 9. Bd3 {[%clk 0:04:42]} 9... h6 {[%clk
0:04:36.6]} 10. h4 {[%clk 0:04:36.8]} 10... d5 {[%clk 0:04:27.9]} 11. cxd5
{[%clk 0:04:33.2]} 11... Qxd5 {[%clk 0:04:26.1]} 12. Ng5 {[%clk 0:04:30.2]}
12... Qxg2 {[%clk 0:04:21.6]} 13. Be4 {[%clk 0:04:26.6]} 13... Qg4 {[%clk
0:04:14.8]} 14. Nh7 {[%clk 0:04:16]} 14... Bxh4 {[%clk 0:03:39.6]} 15. Nxf8
{[%clk 0:04:09.6]} 15... Kxf8 {[%clk 0:03:38.6]} 16. b3 {[%clk 0:04:01.7]} 16...
Bf6 {[%clk 0:03:34]} 17. Bb2 {[%clk 0:03:59.5]} 17... Be6 {[%clk 0:03:26.8]} 18.
Bd3 {[%clk 0:03:54.9]} 18... e4 {[%clk 0:03:15.9]} 19. Bxe4 {[%clk 0:03:45]}
19... Bxb2 {[%clk 0:03:14]} 20. Bxc6 {[%clk 0:03:31.8]} 20... Bxa1 {[%clk
0:03:10.4]} 21. Bxb7 {[%clk 0:03:26.2]} 21... Rd8 {[%clk 0:03:02.5]} 22. Qxc7
{[%clk 0:03:21.1]} 22... Bf6 {[%clk 0:02:59.8]} 23. d4 {[%clk 0:03:01]} 23...
Qf5 {[%clk 0:02:48.5]} 24. Ke2 {[%clk 0:02:53.1]} 24... Qb5+ {[%clk 0:02:39.7]}
25. Kd2 {[%clk 0:02:37.8]} 25... Qxb3 {[%clk 0:02:35.7]} 26. Bf3 {[%clk
0:02:34.2]} 26... Rc8 {[%clk 0:02:29.8]} 27. Qd6+ {[%clk 0:02:29.8]} 27... Kg8
{[%clk 0:02:28.2]} 28. Rc1 {[%clk 0:02:25.1]} 28... Qb2+ {[%clk 0:02:23.3]} 0-1

[Event "Live Chess"]
[Site "Chess.com"]
[Date "2023.05.21"]
[Round "-"]
[White "mirandaasilva"]
[Black "RoaringKnights"]
[Result "1-0"]
[WhiteElo "1643"]
[BlackElo "993"]
[TimeControl "300"]
[EndTime "0:48:46 PDT"]
[Termination "mirandaasilva won on time"]

1. d4 {[%clk 0:04:53.4]} 1... c6 {[%clk 0:04:56.5]} 2. e4 {[%clk 0:04:49.9]}
2... d5 {[%clk 0:04:54.9]} 3. exd5 {[%clk 0:04:49.3]} 3... cxd5 {[%clk
0:04:52.2]} 4. Bd3 {[%clk 0:04:49.2]} 4... e6 {[%clk 0:04:44.5]} 5. Nf3 {[%clk
0:04:44.9]} 5... Nc6 {[%clk 0:04:41.7]} 6. O-O {[%clk 0:04:43.2]} 6... Nf6
{[%clk 0:04:39.4]} 7. c3 {[%clk 0:04:41.8]} 7... Bd6 {[%clk 0:04:34.7]} 8. Re1
{[%clk 0:04:40.7]} 8... O-O {[%clk 0:04:27.5]} 9. Ne5 {[%clk 0:04:38.6]} 9...
Qc7 {[%clk 0:04:19.4]} 10. Bf4 {[%clk 0:04:16.1]} 10... Nd7 {[%clk 0:03:50.5]}
11. Qh5 {[%clk 0:02:46.3]} 11... g6 {[%clk 0:03:36]} 12. Nxg6 {[%clk 0:02:28.7]}
12... fxg6 {[%clk 0:03:30.6]} 13. Bxg6 {[%clk 0:02:25.9]} 13... Nf6 {[%clk
0:03:13.1]} 14. Bxd6 {[%clk 0:01:43.5]} 14... Nxh5 {[%clk 0:02:50.5]} 15. Bxc7
{[%clk 0:01:40.3]} 15... hxg6 {[%clk 0:02:48.4]} 16. Na3 {[%clk 0:01:21.1]}
16... Bd7 {[%clk 0:02:39.2]} 17. Bd6 {[%clk 0:01:18.6]} 17... Rf7 {[%clk
0:02:30.6]} 18. g3 {[%clk 0:01:16.4]} 18... Nf6 {[%clk 0:02:27.1]} 19. Nb5
{[%clk 0:01:09.9]} 19... Ne4 {[%clk 0:02:11.6]} 20. Bf4 {[%clk 0:01:02.8]} 20...
g5 {[%clk 0:02:07.3]} 21. Nd6 {[%clk 0:00:51.4]} 21... Rff8 {[%clk 0:01:31.9]}
22. Be3 {[%clk 0:00:46.1]} 22... Nxd6 {[%clk 0:01:27.1]} 23. b4 {[%clk
0:00:38.8]} 23... Nc4 {[%clk 0:01:22.9]} 24. Bc1 {[%clk 0:00:37.1]} 24... Rf7
{[%clk 0:01:11.8]} 25. a4 {[%clk 0:00:36.4]} 25... Raf8 {[%clk 0:01:06.4]} 26.
Ra2 {[%clk 0:00:35.8]} 26... e5 {[%clk 0:00:57.1]} 27. b5 {[%clk 0:00:30.8]}
27... Ne7 {[%clk 0:00:40.2]} 28. dxe5 {[%clk 0:00:30.1]} 28... Be6 {[%clk
0:00:32.9]} 29. Bxg5 {[%clk 0:00:28.2]} 29... Ng6 {[%clk 0:00:29.8]} 30. f4
{[%clk 0:00:22.6]} 30... Rc8 {[%clk 0:00:19.6]} 31. h3 {[%clk 0:00:18.3]} 31...
Bxh3 {[%clk 0:00:17.8]} 32. Kh2 {[%clk 0:00:16.1]} 32... Be6 {[%clk 0:00:16.3]}
33. Kg2 {[%clk 0:00:14.2]} 33... Rcf8 {[%clk 0:00:15.1]} 34. Rh1 {[%clk
0:00:13.5]} 34... Kg7 {[%clk 0:00:10.8]} 35. Bf6+ {[%clk 0:00:11.7]} 35... Rxf6
{[%clk 0:00:08.9]} 36. exf6+ {[%clk 0:00:11.6]} 36... Rxf6 {[%clk 0:00:08.2]}
37. Re2 {[%clk 0:00:09.7]} 37... Kf7 {[%clk 0:00:07.4]} 38. Rf2 {[%clk 0:00:09]}
38... Ke7 {[%clk 0:00:06.8]} 39. Rc2 {[%clk 0:00:07.5]} 39... Kd7 {[%clk
0:00:05.5]} 40. Ra2 {[%clk 0:00:07.4]} 40... Kd6 {[%clk 0:00:04.7]} 41. Rh7
{[%clk 0:00:07.3]} 41... Kc5 {[%clk 0:00:03.9]} 42. Rxb7 {[%clk 0:00:06.5]}
42... Kd6 {[%clk 0:00:00.7]} 43. a5 {[%clk 0:00:06.4]} 1-0

[Event "Live Chess"]
[Site "Chess.com"]
[Date "2023.05.21"]
[Round "-"]
[White "Biranidun"]
[Black "Leonid_Starozhilov"]
[Result "0-1"]
[WhiteElo "2534"]
[BlackElo "2654"]
[TimeControl "300"]
[EndTime "0:48:50 PDT"]
[Termination "Leonid_Starozhilov won by resignation"]

1. e4 {[%clk 0:04:59]} 1... g6 {[%clk 0:04:58.7]} 2. d4 {[%clk 0:04:57.9]} 2...
Bg7 {[%clk 0:04:58.2]} 3. Nc3 {[%clk 0:04:57.6]} 3... d6 {[%clk 0:04:57.7]} 4.
f4 {[%clk 0:04:57.1]} 4... Nc6 {[%clk 0:04:56.4]} 5. Be3 {[%clk 0:04:55.3]} 5...
d5 {[%clk 0:04:55.2]} 6. e5 {[%clk 0:04:48.9]} 6... h5 {[%clk 0:04:54.2]} 7. Nf3
{[%clk 0:04:48.2]} 7... Nh6 {[%clk 0:04:50.4]} 8. h3 {[%clk 0:04:42.4]} 8... f6
{[%clk 0:04:38.2]} 9. Bd3 {[%clk 0:04:36.4]} 9... Bf5 {[%clk 0:04:36.5]} 10. Nh4
{[%clk 0:04:35.9]} 10... Kf7 {[%clk 0:04:22.6]} 11. Nxf5 {[%clk 0:04:20.4]}
11... Nxf5 {[%clk 0:04:20.6]} 12. Bxf5 {[%clk 0:03:56.8]} 12... gxf5 {[%clk
0:04:17.9]} 13. Qf3 {[%clk 0:03:55.6]} 13... e6 {[%clk 0:04:07.2]} 14. O-O-O
{[%clk 0:03:54.5]} 14... fxe5 {[%clk 0:03:55.2]} 15. fxe5 {[%clk 0:03:52.5]}
15... h4 {[%clk 0:03:52.9]} 16. g4 {[%clk 0:03:46.4]} 16... hxg3 {[%clk
0:03:49.7]} 17. Qxg3 {[%clk 0:03:43.9]} 17... Qh4 {[%clk 0:03:47.1]} 18. Qg2
{[%clk 0:03:42.9]} 18... Bh6 {[%clk 0:03:44.1]} 19. Bxh6 {[%clk 0:03:39.4]}
19... Qxh6+ {[%clk 0:03:43.7]} 20. Kb1 {[%clk 0:03:38.6]} 20... Rag8 {[%clk
0:03:43.1]} 21. Qe2 {[%clk 0:03:35.6]} 21... a6 {[%clk 0:03:35.5]} 22. Na4
{[%clk 0:03:33.9]} 22... Qf4 {[%clk 0:03:27.2]} 23. Rhf1 {[%clk 0:03:04.3]}
23... Qg5 {[%clk 0:02:43.3]} 24. Nc5 {[%clk 0:03:02]} 24... Qg2 {[%clk
0:02:40.5]} 25. Rf2 {[%clk 0:02:54.2]} 25... Qxh3 {[%clk 0:02:39.6]} 26. Nxb7
{[%clk 0:02:49.5]} 26... Qg4 {[%clk 0:02:24.7]} 27. Qd2 {[%clk 0:02:42.9]} 27...
Qxd4 {[%clk 0:02:19.2]} 28. Qxd4 {[%clk 0:02:29.6]} 28... Nxd4 {[%clk
0:02:18.1]} 29. Nc5 {[%clk 0:02:29.1]} 29... a5 {[%clk 0:02:05.6]} 30. c4 {[%clk
0:02:21.4]} 30... Rh4 {[%clk 0:01:51.8]} 31. cxd5 {[%clk 0:02:20.2]} 31... exd5
{[%clk 0:01:51.2]} 32. Nd7 {[%clk 0:01:53.6]} 32... c6 {[%clk 0:01:37.8]} 33.
Rfd2 {[%clk 0:01:45.8]} 33... Ne6 {[%clk 0:01:32.1]} 34. Rc2 {[%clk 0:01:42.5]}
34... Rc4 {[%clk 0:01:24.2]} 35. Rxc4 {[%clk 0:01:38.8]} 35... dxc4 {[%clk
0:01:24.1]} 36. Nb6 {[%clk 0:01:36.9]} 36... c3 {[%clk 0:01:20.1]} 37. bxc3
{[%clk 0:01:34]} 37... Rb8 {[%clk 0:01:18.4]} 38. Rd7+ {[%clk 0:01:29.6]} 38...
Ke8 {[%clk 0:01:15.8]} 39. Rd6 {[%clk 0:01:28.7]} 39... Rxb6+ {[%clk 0:01:13.6]}
40. Kc2 {[%clk 0:01:28.6]} 40... Ke7 {[%clk 0:01:13.1]} 0-1

[Event "Live Chess"]
[Site "Chess.com"]
[Date "2023.05.21"]
[Round "-"]
[White "WelshTiger"]
[Black "yarek"]
[Result "1-0"]
[WhiteElo "2361"]
[BlackElo "1881"]
[TimeControl "300"]
[EndTime "0:49:00 PDT"]
[Termination "WelshTiger won by checkmate"]

1. e4 {[%clk 0:04:57.6]} 1... g6 {[%clk 0:04:59.9]} 2. d4 {[%clk 0:04:55.7]}
2... Bg7 {[%clk 0:04:58.2]} 3. Nc3 {[%clk 0:04:55]} 3... c6 {[%clk 0:04:57.2]}
4. Be3 {[%clk 0:04:48]} 4... d5 {[%clk 0:04:56.1]} 5. Qd2 {[%clk 0:04:47.5]}
5... h5 {[%clk 0:04:47.6]} 6. h3 {[%clk 0:04:45.6]} 6... Bh6 {[%clk 0:04:46.2]}
7. Nf3 {[%clk 0:04:42.6]} 7... Bxe3 {[%clk 0:04:42.2]} 8. Qxe3 {[%clk
0:04:38.5]} 8... Nf6 {[%clk 0:04:31.8]} 9. e5 {[%clk 0:04:36.2]} 9... Nh7 {[%clk
0:04:22.9]} 10. Bd3 {[%clk 0:04:33.7]} 10... e6 {[%clk 0:04:00.4]} 11. O-O-O
{[%clk 0:04:27.8]} 11... Nd7 {[%clk 0:03:58]} 12. g4 {[%clk 0:04:26.7]} 12...
Nhf8 {[%clk 0:03:40.8]} 13. Ng5 {[%clk 0:04:18.9]} 13... c5 {[%clk 0:03:24]} 14.
f4 {[%clk 0:04:17.7]} 14... cxd4 {[%clk 0:03:19.9]} 15. Qxd4 {[%clk 0:04:16.4]}
15... Qb6 {[%clk 0:03:17]} 16. Qxb6 {[%clk 0:04:08.6]} 16... Nxb6 {[%clk
0:03:13.2]} 17. Ne2 {[%clk 0:04:06.2]} 17... Bd7 {[%clk 0:03:10.4]} 18. Nd4
{[%clk 0:04:05.2]} 18... Rc8 {[%clk 0:03:02.2]} 19. f5 {[%clk 0:04:02.1]} 19...
gxf5 {[%clk 0:02:54.5]} 20. gxf5 {[%clk 0:04:01.3]} 20... exf5 {[%clk 0:02:53]}
21. Bxf5 {[%clk 0:03:55.6]} 21... Bxf5 {[%clk 0:02:49.1]} 22. Nxf5 {[%clk
0:03:54.7]} 22... Rc7 {[%clk 0:02:29.5]} 23. Nd6+ {[%clk 0:03:53.4]} 23... Ke7
{[%clk 0:02:20.1]} 24. Rhf1 {[%clk 0:03:48.2]} 24... Ng6 {[%clk 0:01:51.3]} 25.
Rxf7+ {[%clk 0:03:34]} 25... Kd8 {[%clk 0:01:44.4]} 26. Ne6# {[%clk 0:03:27.7]}
1-0

[Event "Live Chess"]
[Site "Chess.com"]
[Date "2023.05.21"]
[Round "-"]
[White "LiamClery2020"]
[Black "BillythekidFellowes"]
[Result "0-1"]
[WhiteElo "2016"]
[BlackElo "2042"]
[TimeControl "300"]
[EndTime "0:49:00 PDT"]
[Termination "BillythekidFellowes won by checkmate"]

1. e4 {[%clk 0:04:59.5]} 1... Nc6 {[%clk 0:04:57.6]} 2. Nc3 {[%clk 0:04:55.2]}
2... e6 {[%clk 0:04:55.5]} 3. Nf3 {[%clk 0:04:53.4]} 3... d5 {[%clk 0:04:54.6]}
4. e5 {[%clk 0:04:52.6]} 4... Nge7 {[%clk 0:04:51.7]} 5. d4 {[%clk 0:04:51.9]}
5... Ng6 {[%clk 0:04:51.2]} 6. h4 {[%clk 0:04:49.7]} 6... h5 {[%clk 0:04:49.8]}
7. Bd3 {[%clk 0:04:47.1]} 7... Nge7 {[%clk 0:04:49]} 8. Ng5 {[%clk 0:04:44.2]}
8... Bd7 {[%clk 0:04:43]} 9. Qf3 {[%clk 0:04:38.5]} 9... Nf5 {[%clk 0:04:42.1]}
10. Bxf5 {[%clk 0:04:35.8]} 10... exf5 {[%clk 0:04:42]} 11. Qxd5 {[%clk
0:04:32.3]} 11... Qe7 {[%clk 0:04:38.8]} 12. Be3 {[%clk 0:04:30.3]} 12... Be6
{[%clk 0:04:35.4]} 13. Qb5 {[%clk 0:04:28.1]} 13... O-O-O {[%clk 0:04:34.6]} 14.
d5 {[%clk 0:04:22.4]} 14... Qb4 {[%clk 0:04:28.4]} 15. dxe6 {[%clk 0:04:15.3]}
15... Qg4 {[%clk 0:04:18.7]} 16. Nxf7 {[%clk 0:04:07.7]} 16... Qxg2 {[%clk
0:04:15.9]} 17. Rf1 {[%clk 0:04:03.4]} 17... Bb4 {[%clk 0:04:13.3]} 18. Nxh8
{[%clk 0:03:54.2]} 18... f4 {[%clk 0:04:04.8]} 19. Bc5 {[%clk 0:03:51.5]} 19...
Qe4+ {[%clk 0:04:02.1]} 20. Qe2 {[%clk 0:03:42.4]} 20... Qf5 {[%clk 0:03:59.1]}
21. Bxb4 {[%clk 0:03:39.7]} 21... Nxb4 {[%clk 0:03:57.6]} 22. Rc1 {[%clk
0:03:32.6]} 22... Rxh8 {[%clk 0:03:52]} 23. a3 {[%clk 0:03:28.8]} 23... Nc6
{[%clk 0:03:50.3]} 24. Qe4 {[%clk 0:03:27.4]} 24... Qg4 {[%clk 0:03:47]} 25. Rd1
{[%clk 0:03:19.5]} 25... Qxe6 {[%clk 0:03:41.4]} 26. Rd5 {[%clk 0:03:12.8]}
26... f3 {[%clk 0:03:35.3]} 27. Rc5 {[%clk 0:02:58.6]} 27... Rd8 {[%clk
0:03:30.7]} 28. Rxc6 {[%clk 0:02:53]} 28... bxc6 {[%clk 0:03:28.7]} 29. Qxf3
{[%clk 0:02:51]} 29... Qxe5+ {[%clk 0:03:27.5]} 30. Qe3 {[%clk 0:02:50.2]} 30...
Qd6 {[%clk 0:03:24.2]} 31. Ke2 {[%clk 0:02:44.7]} 31... Qg6 {[%clk 0:03:16.1]}
32. Kf3 {[%clk 0:02:33]} 32... Qg4# {[%clk 0:03:14.5]} 0-1

[Event "Live Chess"]
[Site "Chess.com"]
[Date "2023.05.21"]
[Round "-"]
[White "Duke_of_Bebington"]
[Black "RamsayFlayer"]
[Result "0-1"]
[WhiteElo "1583"]
[BlackElo "1984"]
[TimeControl "300"]
[EndTime "0:49:06 PDT"]
[Termination "RamsayFlayer won by resignation"]

1. e4 {[%clk 0:04:57.6]} 1... e5 {[%clk 0:04:58.2]} 2. Nf3 {[%clk 0:04:56.4]}
2... Nc6 {[%clk 0:04:57.8]} 3. Bc4 {[%clk 0:04:55.6]} 3... Nf6 {[%clk
0:04:56.6]} 4. d3 {[%clk 0:04:54.2]} 4... Bc5 {[%clk 0:04:55.3]} 5. O-O {[%clk
0:04:53.7]} 5... h6 {[%clk 0:04:47.8]} 6. Bb3 {[%clk 0:04:52.6]} 6... d6 {[%clk
0:04:45.5]} 7. c3 {[%clk 0:04:51.9]} 7... Be6 {[%clk 0:04:43.1]} 8. Bc2 {[%clk
0:04:50.7]} 8... O-O {[%clk 0:04:37.4]} 9. d4 {[%clk 0:04:49.9]} 9... Bc4 {[%clk
0:04:27.3]} 10. Re1 {[%clk 0:04:45.4]} 10... exd4 {[%clk 0:04:21.4]} 11. cxd4
{[%clk 0:04:44.3]} 11... Bb4 {[%clk 0:04:20.5]} 12. Nc3 {[%clk 0:04:41.5]} 12...
Ne7 {[%clk 0:03:55.4]} 13. a3 {[%clk 0:04:24.5]} 13... Ba5 {[%clk 0:03:50.7]}
14. b3 {[%clk 0:04:13.5]} 14... Be6 {[%clk 0:03:47]} 15. b4 {[%clk 0:04:11.2]}
15... Bb6 {[%clk 0:03:45.4]} 16. Bb2 {[%clk 0:04:04.6]} 16... Bg4 {[%clk
0:03:41.5]} 17. h3 {[%clk 0:04:01.2]} 17... Bh5 {[%clk 0:03:39.8]} 18. Qd3
{[%clk 0:04:00.2]} 18... Bxf3 {[%clk 0:03:32.6]} 19. Qxf3 {[%clk 0:03:58.4]}
19... Bxd4 {[%clk 0:03:30.8]} 20. Rad1 {[%clk 0:03:54.3]} 20... Be5 {[%clk
0:03:28.5]} 21. Ba1 {[%clk 0:03:51.1]} 21... Ng6 {[%clk 0:03:26.3]} 22. Bb3
{[%clk 0:03:44.7]} 22... Nh4 {[%clk 0:03:13.5]} 23. Qe3 {[%clk 0:03:39]} 23...
Nh5 {[%clk 0:03:07.1]} 24. g3 {[%clk 0:03:30.2]} 24... Ng6 {[%clk 0:02:59.6]}
25. f4 {[%clk 0:03:25.1]} 25... Bf6 {[%clk 0:02:48.5]} 26. f5 {[%clk 0:03:15.5]}
26... Ne5 {[%clk 0:02:39.3]} 27. g4 {[%clk 0:03:14.6]} 27... Bg5 {[%clk
0:02:30.2]} 28. Qf2 {[%clk 0:03:07.6]} 28... Nf4 {[%clk 0:02:28.2]} 29. Qg3
{[%clk 0:02:54.6]} 29... Qe7 {[%clk 0:01:38.8]} 30. h4 {[%clk 0:02:51.2]} 30...
Bxh4 {[%clk 0:01:35.2]} 31. Qxf4 {[%clk 0:02:50.7]} 31... Bxe1 {[%clk
0:01:33.9]} 32. Rxe1 {[%clk 0:02:48.7]} 32... Qh4 {[%clk 0:01:32.8]} 33. Nd5
{[%clk 0:02:38.2]} 33... Qxe1+ {[%clk 0:01:28.6]} 0-1

[Event "Live Chess"]
[Site "Chess.com"]
[Date "2023.05.21"]
[Round "-"]
[White "BostonStrangler"]
[Black "LutherSullivan"]
[Result "1-0"]
[WhiteElo "2075"]
[BlackElo "2117"]
[TimeControl "300"]
[EndTime "0:49:10 PDT"]
[Termination "BostonStrangler won by resignation"]

1. Nf3 {[%clk 0:04:58.1]} 1... Nf6 {[%clk 0:04:58]} 2. g3 {[%clk 0:04:56.7]}
2... g6 {[%clk 0:04:57.6]} 3. Bg2 {[%clk 0:04:56.1]} 3... Bg7 {[%clk 0:04:57.3]}
4. O-O {[%clk 0:04:55.6]} 4... O-O {[%clk 0:04:56.8]} 5. d4 {[%clk 0:04:54.6]}
5... d5 {[%clk 0:04:56.2]} 6. c4 {[%clk 0:04:53.5]} 6... c6 {[%clk 0:04:55.3]}
7. cxd5 {[%clk 0:04:52]} 7... cxd5 {[%clk 0:04:54.9]} 8. Ne5 {[%clk 0:04:51.6]}
8... Ne4 {[%clk 0:04:52.6]} 9. Nc3 {[%clk 0:04:31.6]} 9... Nxc3 {[%clk
0:04:51.1]} 10. bxc3 {[%clk 0:04:30.4]} 10... Nc6 {[%clk 0:04:50.8]} 11. f4
{[%clk 0:04:25.3]} 11... Nxe5 {[%clk 0:04:48.1]} 12. fxe5 {[%clk 0:04:23.9]}
12... Be6 {[%clk 0:04:47.7]} 13. Rb1 {[%clk 0:04:20.6]} 13... b6 {[%clk
0:04:42.6]} 14. Ba3 {[%clk 0:04:10.1]} 14... Rc8 {[%clk 0:04:40.8]} 15. Rc1
{[%clk 0:03:56.2]} 15... Qd7 {[%clk 0:04:35.4]} 16. Qd3 {[%clk 0:03:51]} 16...
Rc4 {[%clk 0:04:30]} 17. e4 {[%clk 0:03:47.6]} 17... Ra4 {[%clk 0:04:27.6]} 18.
exd5 {[%clk 0:03:07.4]} 18... Bxd5 {[%clk 0:03:46.4]} 19. Bxd5 {[%clk
0:03:03.2]} 19... Qxd5 {[%clk 0:03:42.7]} 20. Bxe7 {[%clk 0:03:00.4]} 20... Rxa2
{[%clk 0:03:40.1]} 21. Qf3 {[%clk 0:02:48.9]} 21... Qxf3 {[%clk 0:03:35]} 22.
Rxf3 {[%clk 0:02:47.5]} 22... Rc8 {[%clk 0:03:26.4]} 23. Rcf1 {[%clk 0:02:42.3]}
23... Re2 {[%clk 0:02:38.5]} 24. Bd6 {[%clk 0:02:22.3]} 24... Bh6 {[%clk
0:02:25.8]} 25. Rxf7 {[%clk 0:02:08.5]} 25... Be3+ {[%clk 0:02:22.8]} 26. Kh1
{[%clk 0:02:08.1]} 26... g5 {[%clk 0:02:13.4]} 27. Rc7 {[%clk 0:01:56.5]} 27...
Rxc7 {[%clk 0:02:08.2]} 28. Bxc7 {[%clk 0:01:55]} 28... Rc2 {[%clk 0:02:05.2]}
29. e6 {[%clk 0:01:49.2]} 1-0

[Event "Live Chess"]
[Site "Chess.com"]
[Date "2023.05.21"]
[Round "-"]
[White "YrrriKharkiv"]
[Black "peter-785"]
[Result "1-0"]
[WhiteElo "2058"]
[BlackElo "1196"]
[TimeControl "300"]
[EndTime "0:49:12 PDT"]
[Termination "YrrriKharkiv won on time"]

1. d4 {[%clk 0:04:53.4]} 1... d5 {[%clk 0:04:57.7]} 2. c4 {[%clk 0:04:51.8]}
2... c6 {[%clk 0:04:56.9]} 3. Nc3 {[%clk 0:04:50]} 3... e6 {[%clk 0:04:56.4]} 4.
Nf3 {[%clk 0:04:47.8]} 4... Nf6 {[%clk 0:04:55.6]} 5. e3 {[%clk 0:04:46]} 5...
Be7 {[%clk 0:04:47.4]} 6. Qc2 {[%clk 0:04:45.1]} 6... O-O {[%clk 0:04:29.7]} 7.
b3 {[%clk 0:04:11.2]} 7... a6 {[%clk 0:04:25]} 8. Bd3 {[%clk 0:04:09.8]} 8... h6
{[%clk 0:04:21.8]} 9. h4 {[%clk 0:04:06.1]} 9... Nbd7 {[%clk 0:04:09.3]} 10. Ng5
{[%clk 0:04:05.3]} 10... Ne4 {[%clk 0:04:00]} 11. Ngxe4 {[%clk 0:04:01.3]} 11...
dxe4 {[%clk 0:03:58.8]} 12. Nxe4 {[%clk 0:03:59.8]} 12... Nf6 {[%clk 0:03:52.8]}
13. Qe2 {[%clk 0:03:47.1]} 13... Nxe4 {[%clk 0:03:46.5]} 14. Bxe4 {[%clk
0:03:45.3]} 14... Bxh4 {[%clk 0:03:41.5]} 15. Qh5 {[%clk 0:03:42.2]} 15... Bf6
{[%clk 0:03:35.4]} 16. Bb2 {[%clk 0:03:30.6]} 16... b5 {[%clk 0:03:26.9]} 17. c5
{[%clk 0:03:26.6]} 17... Qa5+ {[%clk 0:03:04.1]} 18. Ke2 {[%clk 0:03:22.8]}
18... b4 {[%clk 0:02:46.9]} 19. Bd3 {[%clk 0:03:16.3]} 19... Qd8 {[%clk
0:02:38.9]} 20. Qf3 {[%clk 0:03:12.5]} 20... Qd5 {[%clk 0:02:37.2]} 21. Be4
{[%clk 0:03:10.8]} 21... Qg5 {[%clk 0:02:35]} 22. Rh5 {[%clk 0:03:00.4]} 22...
Qxh5 {[%clk 0:01:44.2]} 23. Qxh5 {[%clk 0:02:58.1]} 23... Bb7 {[%clk 0:01:34.3]}
24. Qf3 {[%clk 0:02:54.5]} 24... Rac8 {[%clk 0:01:21.7]} 25. Bd3 {[%clk
0:02:52.7]} 25... Rfe8 {[%clk 0:01:13.4]} 26. Qe4 {[%clk 0:02:50.1]} 26... g6
{[%clk 0:01:10.1]} 27. Rh1 {[%clk 0:02:43.5]} 27... Bg7 {[%clk 0:01:09]} 28. f4
{[%clk 0:02:39.7]} 28... f5 {[%clk 0:00:57.7]} 29. Qf3 {[%clk 0:02:36.7]} 29...
e5 {[%clk 0:00:41.7]} 30. fxe5 {[%clk 0:02:33.8]} 30... Rc7 {[%clk 0:00:37]} 31.
g4 {[%clk 0:02:32.2]} 31... fxg4 {[%clk 0:00:31.6]} 32. Qxg4 {[%clk 0:02:30.4]}
32... g5 {[%clk 0:00:22.4]} 33. Qf5 {[%clk 0:02:28]} 33... Bh8 {[%clk
0:00:14.1]} 34. Rxh6 {[%clk 0:02:22.9]} 34... Rg7 {[%clk 0:00:11.2]} 35. Rg6
{[%clk 0:02:13]} 35... Rf8 {[%clk 0:00:04.9]} 36. Rxg7+ {[%clk 0:02:07.3]} 36...
Bxg7 {[%clk 0:00:03.4]} 37. Qh7+ {[%clk 0:02:03.3]} 1-0

[Event "Live Chess"]
[Site "Chess.com"]
[Date "2023.05.21"]
[Round "-"]
[White "Bot_Boy"]
[Black "Doge_Dandolo"]
[Result "0-1"]
[WhiteElo "334"]
[BlackElo "1905"]
[TimeControl "300"]
[EndTime "0:49:31 PDT"]
[Termination "Doge_Dandolo won on time"]

1. b4 {[%clk 0:04:56.1]} 1... e5 {[%clk 0:04:55.8]} 2. c3 {[%clk 0:04:49.5]}
2... d5 {[%clk 0:04:52.4]} 3. d4 {[%clk 0:04:46.3]} 3... exd4 {[%clk 0:04:48.9]}
4. Qxd4 {[%clk 0:04:42.7]} 4... Nf6 {[%clk 0:04:45.3]} 5. Bg5 {[%clk 0:04:34.7]}
5... Be7 {[%clk 0:04:41.4]} 6. h4 {[%clk 0:04:10.3]} 6... a5 {[%clk 0:04:31.9]}
7. b5 {[%clk 0:03:43.6]} 7... c5 {[%clk 0:04:24.8]} 8. Qa4 {[%clk 0:03:13.2]}
8... O-O {[%clk 0:04:20.8]} 9. e3 {[%clk 0:02:58.7]} 9... h6 {[%clk 0:04:15.2]}
10. Bf4 {[%clk 0:02:42.9]} 10... Nh5 {[%clk 0:03:57.2]} 11. Be5 {[%clk
0:02:12.5]} 11... Nd7 {[%clk 0:03:49.9]} 12. Bf4 {[%clk 0:01:42.8]} 12... Nxf4
{[%clk 0:03:46.4]} 13. Qxf4 {[%clk 0:01:38.1]} 13... Bf6 {[%clk 0:03:44.3]} 14.
a4 {[%clk 0:01:16.6]} 14... Re8 {[%clk 0:03:34.5]} 15. g3 {[%clk 0:01:02.1]}
15... d4 {[%clk 0:03:27.2]} 16. Ra3 {[%clk 0:00:46.3]} 16... dxe3 {[%clk
0:03:16.3]} 17. fxe3 {[%clk 0:00:41.4]} 17... Ne5 {[%clk 0:03:06.1]} 18. Nf3
{[%clk 0:00:16.8]} 18... Nxf3+ {[%clk 0:02:54.9]} 19. Qxf3 {[%clk 0:00:14.7]}
19... Be6 {[%clk 0:02:39.5]} 20. Qd1 {[%clk 0:00:13.2]} 20... Qc7 {[%clk
0:02:37.4]} 21. c4 {[%clk 0:00:10.4]} 21... Qxg3+ {[%clk 0:02:34.3]} 22. Kd2
{[%clk 0:00:04.8]} 22... Rad8+ {[%clk 0:02:32.8]} 23. Bd3 {[%clk 0:00:01.4]}
23... Bf5 {[%clk 0:02:29]} 0-1